bitfinex-derivatives/quotes_ETHF0:USTF0_20260203
["timestamp","ask_amount","ask_price","bid_price","bid_amount"]
[1770146713294,2.54163245,2179.4,2178.2,4.19874527]
[1770146713590,2.54163245,2179.4,2178.5,0.22977]
[1770146713790,0.0055992,2179.4,2178.6,0.22976]
[1770146714589,2.5464478,2179.4,2178.6,0.22976]
[1770146714789,3.09779551,2179.3,2178.6,0.22976]
[1770146714985,3.09779551,2179.3,2178.3,0.22979]
[1770146715189,2.5464478,2179.4,2178.3,0.22979]
[1770146715390,5.64424331,2179.4,2178.3,0.22979]
[1770146715891,5.64424331,2179.4,2178.3,0.05997181]
[1770146716088,2.5464478,2179.4,2178.3,0.05997181]
[1770146716493,2.54511114,2179.3,2178.2,4.13083032]
[1770146716994,3.09779551,2179.1,2178.3,0.22979]
[1770146717390,2.54511114,2179.3,2178.3,0.22979]
[1770146717591,5.64290665,2179.1,2178.3,0.22979]
[1770146717787,2.54511114,2178.7,2178.2,0.00383032]
[1770146717994,2.54319598,2178.5,2177.7,0.22986]
[1770146718192,3.09779551,2178.9,2177.7,4.13]
[1770146718390,0.0055992,2179.4,2177.8,4.19196392]
[1770146718591,0.0055992,2179.4,2178.3,0.22979]
[1770146718796,0.0055992,2179.4,2178.3,3.42379]
[1770146719089,3.09779551,2178.7,2178.3,0.00591613]
[1770146719294,3.09779551,2178.5,2178.3,0.00591613]
[1770146719689,3.09779551,2178.4,2177.9,0.22983]
[1770146719896,3.09779551,2178.7,2177.9,0.22983]
[1770146720290,3.09779551,2178.5,2177.9,0.22983]
[1770146720490,2.36233662,2178.7,2177.9,0.22983]
[1770146720690,3.09779551,2178.5,2177.9,0.23137985]
[1770146720899,3.09779551,2178.4,2177.9,0.23137985]
[1770146721298,3.09779551,2178.3,2177.9,0.23137985]
[1770146721500,3.09779551,2178.4,2177.9,0.23137985]
[1770146721699,2.36233662,2178.3,2176.9,0.4591824]
[1770146721899,2.36233662,2179.3,2177.7,0.22986]
[1770146722099,2.36233662,2179.0,2177.7,0.22986]
[1770146722399,2.36233662,2178.6,2177.7,0.22986]
[1770146722792,2.36233662,2178.1,2177.7,0.22986]
[1770146723296,2.36233662,2178.1,2177.0,7.323]
[1770146723297,2.36233662,2177.8,2177.0,7.323]
[1770146723496,2.36578461,2177.8,2177.0,4.131]
[1770146723697,2.36233662,2178.1,2177.1,0.22992]
[1770146724203,2.26503551,2177.7,2177.1,0.22992]
[1770146724499,2.36233662,2177.8,2177.1,0.22992]
[1770146724801,2.26503551,2177.5,2177.1,0.23336799]
[1770146724997,2.36233662,2178.3,2177.1,0.00344799]
[1770146725302,10.47826398,2180.1,2177.1,0.00344799]
[1770146725303,2.36233662,2179.5,2178.1,0.22981]
[1770146725500,2.36233662,2179.5,2178.4,0.22978]
[1770146725801,2.36233662,2179.5,2178.1,3.41782]
[1770146726102,2.36796062,2179.5,2178.1,3.41782]
[1770146726305,2.36796062,2179.5,2178.2,0.2298]
[1770146726996,2.36796062,2179.5,2178.1,3.63719172]
[1770146727199,2.36233662,2179.9,2178.8,0.44919172]
[1770146727397,2.36233662,2180.9,2178.9,0.44919172]
[1770146727598,2.36233662,2180.9,2178.8,3.67301687]
[1770146727599,2.36233662,2180.9,2179.4,0.22967]
[1770146727996,2.36233662,2180.9,2179.0,7.319]
[1770146727997,2.59186662,2180.9,2179.0,7.319]
[1770146728205,2.36233662,2180.7,2179.0,7.3238093]
[1770146728403,2.36233662,2180.5,2179.0,7.3238093]
[1770146729903,2.36233662,2180.5,2179.0,7.77727863]
[1770146730101,2.36233662,2180.5,2179.1,0.45346933]
[1770146730605,2.36233662,2180.5,2179.3,0.22969]
[1770146730905,2.36233662,2180.5,2179.0,7.3238093]
[1770146731802,2.36233662,2180.5,2179.0,4.1368093]
[1770146732001,2.36233662,2180.3,2179.0,4.1368093]
[1770146732906,2.36233662,2180.1,2179.0,4.1368093]
[1770146733602,2.59194662,2180.1,2178.4,5.00945451]
[1770146734310,2.59194662,2180.1,2178.5,2.31645451]
[1770146734505,2.59194662,2180.1,2178.5,2.32183595]
[1770146736208,2.36233662,2179.9,2178.5,0.00538144]
[1770146736409,2.36233662,2179.6,2178.5,0.00538144]
[1770146736610,0.22967,2179.5,2178.5,0.00538144]
[1770146736804,0.22967,2179.5,2178.2,4.132]
[1770146736805,2.36233662,2179.4,2178.2,4.132]
[1770146737004,2.59205662,2179.1,2177.6,4.92456353]
[1770146737206,2.59205662,2179.1,2177.6,2.31645451]
[1770146737607,0.22972,2179.0,2177.6,2.31645451]
[1770146737803,2.36233662,2178.9,2177.6,2.32031799]
[1770146738811,2.36233662,2178.9,2177.6,0.00386348]
[1770146739012,2.59207662,2178.9,2177.6,0.00386348]
[1770146739215,2.36233662,2178.9,2177.6,0.00386348]
[1770146741217,2.59206662,2178.9,2177.6,0.00386348]
[1770146741716,2.36233662,2178.9,2177.6,2.32031799]
[1770146742212,2.36233662,2178.9,2177.1,3.88958333]
[1770146742213,2.36233662,2178.1,2176.8,3.88958333]
[1770146742416,2.36233662,2178.1,2176.2,2.31645451]
[1770146742417,2.36233662,2177.8,2176.2,2.31645451]
[1770146742714,2.36233662,2177.8,2176.4,2.31645451]
[1770146743115,2.36233662,2177.8,2176.5,2.63854497]
[1770146743310,2.36233662,2177.8,2176.5,2.31645451]
[1770146743513,2.36233662,2177.8,2176.7,2.63854497]
[1770146743813,2.36233662,2177.8,2176.8,2.63854497]
[1770146744115,2.36233662,2177.8,2176.5,2.31645451]
[1770146744317,2.36233662,2177.8,2176.6,2.63854497]
[1770146744514,2.36233662,2177.8,2176.8,2.31645451]
[1770146744713,2.36233662,2177.8,2176.9,2.63854497]
[1770146744916,2.36233662,2177.8,2176.6,0.22997]
[1770146745110,2.36233662,2177.8,2176.6,2.86851497]
[1770146745308,2.36233662,2177.8,2176.6,2.63854497]
[1770146745513,2.36233662,2177.8,2176.4,2.31739838]
[1770146745713,2.59218662,2177.8,2176.4,0.00094387]
[1770146747014,5.41350255,2178.2,2176.4,0.00094387]
[1770146747215,2.59220662,2177.6,2176.4,0.00094387]
[1770146747716,2.59227662,2177.0,2175.4,2.31645451]
[1770146748214,2.36233662,2177.0,2176.0,2.63854497]
[1770146748416,2.36233662,2177.5,2176.1,2.31645451]
[1770146748612,2.36233662,2176.8,2175.2,2.31645451]
[1770146749016,2.36233662,2176.8,2175.5,2.63854497]
[1770146749317,2.36233662,2176.8,2175.2,2.86866497]
[1770146749622,2.36233662,2176.8,2175.3,2.31645451]
[1770146749915,2.36233662,2176.6,2175.0,2.31645451]
[1770146750121,2.36233662,2176.4,2174.7,4.65563841]
[1770146750417,2.37784161,2176.6,2175.0,2.47651268]
[1770146750817,2.37784161,2176.6,2175.1,5.11505765]
[1770146751018,2.37784161,2176.3,2174.9,2.63854497]
[1770146751316,2.60789161,2175.9,2174.4,0.22196456]
[1770146751522,2.61360299,2175.9,2174.4,0.22196456]
[1770146752219,2.37784161,2175.7,2174.4,0.22196456]
[1770146752619,2.37784161,2175.3,2173.7,2.47651268]
[1770146752822,2.37784161,2174.9,2173.6,1.67854532]
[1770146753018,2.37784161,2173.5,2171.3,3.88958333]
[1770146753321,0.2303,2173.6,2170.8,2.47651268]
[1770146753624,1.96613441,2173.5,2170.9,2.41595934]
[1770146753818,1.74170511,2173.5,2171.4,0.23052]
[1770146754021,1.74170511,2173.5,2171.5,2.41595934]
[1770146754225,1.74170511,2173.5,2171.7,5.05450431]
[1770146754419,1.74170511,2173.5,2171.8,2.41595934]
[1770146754617,1.74170511,2173.5,2172.3,2.63854497]
[1770146754924,1.74170511,2173.5,2171.1,4.137]
[1770146754925,1.72770423,2169.5,2168.6,4.59211354]
[1770146755122,1.72770423,2169.5,2167.5,9.54249146]
[1770146755123,2.69168268,2171.5,2167.1,4.137]
[1770146755423,0.23052,2171.5,2168.9,2.57499349]
[1770146755620,0.59998315,2171.5,2169.0,2.57499349]
[1770146755820,2.6732961,2172.7,2170.1,2.80565349]
[1770146756023,4.138,2172.7,2170.1,2.57499349]
[1770146756225,2.47111021,2172.3,2170.1,0.00569557]
[1770146756419,2.47111021,2171.8,2170.1,0.00569557]
[1770146756824,2.47111021,2171.6,2168.1,6.836]
[1770146757027,0.23059,2170.8,2168.1,6.836]
[1770146757321,2.47111021,2170.6,2167.8,0.23091]
[1770146757628,2.47111021,2170.6,2167.9,4.139]
[1770146757823,2.4758877,2170.6,2167.9,4.14045287]
[1770146758026,2.4758877,2170.6,2168.8,15.42990065]
[1770146758321,0.23074,2169.4,2165.2,0.23119]
[1770146758618,2.47111021,2170.2,2167.8,2.41595934]
[1770146758823,2.47111021,2170.2,2168.6,2.41595934]
[1770146759023,2.47111021,2170.2,2168.7,2.41595934]
[1770146759222,2.47111021,2170.2,2168.7,17.84585999]
[1770146759428,2.47111021,2170.2,2168.7,2.41595934]
[1770146759720,2.47111021,2170.2,2168.9,15.42990065]
[1770146760225,2.47111021,2170.2,2169.2,15.42990065]
[1770146760427,2.4758877,2170.6,2169.4,2.41595934]
[1770146760720,0.00477749,2170.6,2169.7,2.41595934]
[1770146761720,0.00477749,2170.6,2169.3,2.41595934]
[1770146761926,2.4758877,2170.6,2168.7,2.41595934]
[1770146762127,2.4758877,2170.6,2168.8,2.41595934]
[1770146762325,2.4758877,2170.6,2168.9,2.41595934]
[1770146762622,2.4758877,2170.6,2169.0,15.42990065]
[1770146762823,2.4758877,2170.6,2169.0,17.84585999]
[1770146763226,2.4758877,2170.6,2169.0,2.41595934]
[1770146763426,2.4758877,2170.6,2169.1,2.41595934]
[1770146763925,2.4758877,2170.6,2168.7,2.41595934]
[1770146764518,0.00477749,2170.6,2168.8,2.41595934]
[1770146764719,2.47111021,2171.4,2169.7,2.41595934]
[1770146764922,2.47111021,2171.4,2169.9,2.41595934]
[1770146765329,2.47111021,2171.4,2169.1,2.41595934]
[1770146765525,2.47111021,2171.4,2169.3,2.41595934]
[1770146765724,2.47111021,2171.4,2169.5,2.41595934]
[1770146765924,2.47701408,2171.4,2169.5,2.41953161]
[1770146766129,2.47701408,2171.4,2169.6,2.41595934]
[1770146766332,2.47701408,2171.4,2169.9,2.41595934]
[1770146766830,2.47701408,2171.4,2169.9,21.99185999]
[1770146767123,2.47111021,2171.2,2169.5,2.41953161]
[1770146767330,2.47111021,2171.0,2169.6,2.41595934]
[1770146767625,2.47701408,2171.4,2169.8,15.42990065]
[1770146767831,2.47701408,2171.4,2169.9,2.41595934]
[1770146768228,2.47701408,2171.4,2170.0,2.41595934]
[1770146768434,2.47701408,2171.4,2169.5,0.00357227]
[1770146768435,2.47701408,2171.4,2170.2,17.84585999]
[1770146768633,2.47701408,2171.4,2170.2,2.41595934]
[1770146768933,0.00590387,2171.4,2170.4,2.41595934]
[1770146769330,2.47701408,2171.4,2170.0,2.41595934]
[1770146769630,0.00590387,2171.4,2170.3,2.41595934]
[1770146769834,0.00590387,2171.4,2170.3,17.84585999]
[1770146770131,0.00590387,2171.4,2169.8,4.147]
[1770146770132,2.47111021,2172.2,2171.3,9.46069395]
[1770146770332,2.47111021,2172.2,2170.9,2.41595934]
[1770146770532,2.47111021,2172.2,2170.9,17.84585999]
[1770146770734,2.47111021,2172.2,2170.5,2.41595934]
[1770146770928,2.47111021,2172.0,2170.5,2.41595934]
[1770146771234,2.47111021,2172.0,2170.5,2.42178653]
[1770146771235,2.47444695,2172.0,2170.5,2.42178653]
[1770146771529,2.47444695,2172.0,2170.6,2.41595934]
[1770146771835,0.00333674,2172.0,2170.8,2.41595934]
[1770146772129,0.00333674,2172.0,2170.9,2.41595934]
[1770146772335,2.47444695,2172.0,2170.6,15.42990065]
[1770146772634,2.47111021,2171.8,2170.6,2.41595934]
[1770146773028,2.47111021,2171.8,2170.5,0.00582719]
[1770146773532,2.47111021,2171.3,2170.5,0.00582719]
[1770146773933,2.47111021,2171.7,2170.7,15.42990065]
[1770146774135,2.47111021,2171.7,2170.6,2.41595934]
[1770146774434,2.47111021,2171.7,2170.6,17.84585999]
[1770146774627,0.00333674,2172.0,2170.6,2.41595934]
[1770146774935,2.47444695,2172.0,2170.7,17.84585999]
[1770146775129,2.47111021,2171.8,2170.5,2.42178653]
[1770146775328,2.47111021,2171.8,2170.7,17.84585999]
[1770146775528,0.00333674,2172.0,2170.9,17.84585999]
[1770146775728,2.47444695,2172.0,2170.9,2.41595934]
[1770146775935,2.47444695,2172.0,2170.5,0.00582719]
[1770146776136,2.47111021,2171.7,2170.5,0.00582719]
[1770146776337,2.70160021,2171.7,2170.5,0.00582719]
[1770146776528,2.70160021,2171.7,2170.5,2.42178653]
[1770146777034,0.00333674,2172.0,2170.5,2.42178653]
[1770146777035,2.47111021,2171.2,2170.5,0.00582719]
[1770146777432,2.70166021,2171.2,2170.5,0.00582719]
[1770146778436,2.70166021,2171.2,2169.7,6.56395934]
[1770146778631,2.70166021,2171.2,2169.8,2.41595934]
[1770146779437,2.47111021,2171.0,2170.0,15.42990065]
[1770146779832,2.47111021,2171.0,2170.3,15.42990065]
[1770146780038,2.47111021,2171.0,2170.2,15.42990065]
[1770146780235,5.30253541,2171.7,2170.3,2.41595934]
[1770146780434,2.55973103,2172.8,2171.3,2.56748478]
[1770146780635,2.55973103,2172.8,2171.5,2.79799478]
[1770146780836,2.55973103,2173.2,2171.9,0.23047]
[1770146781039,2.55973103,2173.0,2171.6,2.56748478]
[1770146781339,2.55973103,2172.6,2171.1,2.56748478]
[1770146781540,4.16058512,2172.5,2171.1,2.80212999]
[1770146781738,4.16058512,2172.5,2171.5,2.56748478]
[1770146781935,0.00595555,2172.6,2171.7,17.99738543]
[1770146782132,0.00595555,2172.6,2171.8,15.42990065]
[1770146782133,4.19421306,2172.5,2171.8,15.42990065]
[1770146782338,0.00595555,2172.6,2171.7,2.56748478]
[1770146782541,0.00595555,2172.6,2172.1,14.98050909]
[1770146782733,0.00595555,2172.6,2171.1,0.00409521]
[1770146782734,0.00595555,2172.6,2171.6,2.56748478]
[1770146783042,0.00595555,2172.6,2171.6,17.54799387]
[1770146783243,4.19657963,2172.5,2171.8,14.98050909]
[1770146783442,0.00595555,2172.6,2171.8,14.98050909]
[1770146783740,4.1965691,2172.5,2172.0,14.98050909]
[1770146783940,0.00595555,2172.6,2172.0,14.98050909]
[1770146784141,5.30253541,2173.3,2172.3,2.56748478]
[1770146784341,5.30253541,2173.3,2171.9,2.79795478]
[1770146784342,2.55973103,2173.1,2171.9,2.79795478]
[1770146784542,4.19659676,2173.0,2172.1,2.56748478]
[1770146784743,4.19659676,2172.9,2172.3,14.98050909]
[1770146784942,7.86226644,2173.3,2172.2,14.98050909]
[1770146785139,4.18087227,2173.2,2172.4,2.56748478]
[1770146785344,0.00340258,2173.3,2172.5,2.56748478]
[1770146785539,0.00340258,2173.3,2172.5,17.54799387]
[1770146785847,4.17748041,2173.2,2172.1,2.56748478]
[1770146786039,6.73748755,2173.1,2172.1,2.56748478]
[1770146786341,4.17775652,2173.0,2172.1,2.56748478]
[1770146786645,0.00340258,2173.3,2172.4,14.49097737]
[1770146786842,4.17498709,2173.2,2172.2,2.56748478]
[1770146787042,4.17498709,2173.1,2171.8,2.79796478]
[1770146787248,6.73471812,2173.0,2171.8,17.05846215]
[1770146787440,4.17498709,2172.9,2171.8,2.56748478]
[1770146787639,4.17498709,2172.9,2172.0,14.49097737]
[1770146788143,4.17498709,2172.9,2172.1,14.49097737]
[1770146788447,4.17498709,2172.9,2172.2,14.49097737]
[1770146788650,6.73471812,2172.9,2172.0,14.49097737]
[1770146788940,5.30253541,2173.1,2171.4,2.56748478]
[1770146788941,2.55973103,2172.7,2171.4,2.56748478]
[1770146789145,4.17498709,2172.6,2171.9,2.56748478]
[1770146789346,7.86226644,2173.1,2171.9,2.56748478]
[1770146789543,12.03903303,2173.0,2171.9,2.56748478]
[1770146789746,2.55973103,2172.8,2171.5,2.56748478]
[1770146789941,6.73649762,2172.7,2171.6,2.56748478]
[1770146790245,4.17676659,2172.6,2171.5,2.56748478]
[1770146790447,4.17676659,2172.5,2171.8,2.56748478]
[1770146790647,2.55973103,2172.8,2171.4,2.79800478]
[1770146790848,3.98435073,2172.7,2171.6,17.05846215]
[1770146791148,2.55973103,2172.5,2171.4,17.28898215]
[1770146791449,2.55973103,2172.5,2171.4,2.79800478]
[1770146791647,3.98492076,2172.4,2171.6,14.49097737]
[1770146791843,7.86226644,2172.9,2171.8,14.49097737]
[1770146792046,6.5443854,2172.8,2171.6,2.56748478]
[1770146792348,7.86226644,2173.2,2171.8,2.56748478]
[1770146792549,2.55973103,2173.0,2171.8,2.56748478]
[1770146792844,3.98549204,2172.9,2171.9,14.49097737]
[1770146793049,3.98549204,2172.9,2172.0,14.49097737]
[1770146793248,3.98549204,2172.9,2172.1,14.49097737]
[1770146794146,3.98549204,2172.9,2172.4,14.49097737]
[1770146794350,5.30593799,2173.3,2172.1,2.56748478]
[1770146794648,3.99031466,2173.2,2172.4,13.8918941]
[1770146794849,3.99031466,2173.1,2172.4,13.8918941]
[1770146795049,3.9903256,2173.0,2172.1,2.56748478]
[1770146795249,3.9903256,2172.9,2172.2,13.8918941]
[1770146795450,2.56313361,2173.3,2172.4,13.8918941]
[1770146795645,2.55973103,2173.1,2171.8,2.56748478]
[1770146795846,6.54985599,2173.0,2171.9,13.8918941]
[1770146796053,3.99012496,2172.9,2172.0,16.45937888]
[1770146796356,0.00340258,2173.3,2172.4,13.8918941]
[1770146796556,0.00340258,2173.3,2172.3,16.45937888]
[1770146796750,0.00340258,2173.3,2172.3,2.56748478]
[1770146796952,0.00340258,2173.3,2172.6,13.8918941]
[1770146797257,0.00340258,2173.3,2172.5,13.8918941]
[1770146797258,3.97545202,2173.2,2172.5,13.8918941]
[1770146797456,3.97545202,2173.1,2172.5,13.8918941]
[1770146797657,0.00340258,2173.3,2172.6,13.8918941]
[1770146797856,0.00340258,2173.3,2172.6,2.56748478]
[1770146798059,0.00340258,2173.3,2173.0,13.8918941]
[1770146798258,2.55973103,2173.7,2173.0,13.8918941]
[1770146798458,3.97468713,2173.6,2172.6,2.56748478]
[1770146798657,3.97468713,2173.5,2172.8,13.8918941]
[1770146798864,3.97468713,2173.4,2172.8,13.8918941]
[1770146799064,2.55973103,2173.7,2172.9,13.8918941]
[1770146799262,3.97472162,2173.6,2172.9,0.00411382]
[1770146799458,2.55973103,2173.4,2172.2,2.56748478]
[1770146799756,7.86667154,2173.7,2172.4,2.56748478]
[1770146799962,3.97429803,2173.6,2172.6,15.41714461]
[1770146800160,2.56413613,2173.7,2172.7,2.56748478]
[1770146800161,3.97429803,2173.5,2172.7,2.56748478]
[1770146800364,0.0044051,2173.7,2172.7,2.56748478]
[1770146800563,2.55973103,2174.0,2173.3,12.84965983]
[1770146800862,2.55973103,2174.0,2173.2,12.84965983]
[1770146801060,1.05078395,2174.0,2173.3,12.84965983]
[1770146801263,12.71495878,2174.3,2173.4,12.84965983]
[1770146801465,12.71495878,2174.3,2173.3,12.84965983]
[1770146801764,12.71831564,2174.3,2173.3,12.84965983]
[1770146801964,12.71831564,2174.3,2173.4,12.84965983]
[1770146802262,0.00335686,2174.3,2173.5,12.84965983]
[1770146802460,0.00335686,2174.3,2173.7,12.84965983]
[1770146802662,0.00335686,2174.3,2173.9,12.84965983]
[1770146802862,3.158,2174.9,2173.8,12.84965983]
[1770146803063,1.16329112,2174.8,2173.5,5.77848478]
[1770146803363,1.16329112,2174.8,2173.6,2.56748478]
[1770146803562,1.16329112,2174.8,2173.7,12.84965983]
[1770146803761,0.00474586,2174.8,2174.0,2.56748478]
[1770146803961,1.16329112,2175.5,2174.7,12.84965983]
[1770146804163,1.16329112,2175.9,2174.7,2.56748478]
[1770146804364,1.16329112,2175.9,2174.5,0.23019]
[1770146804365,1.16329112,2175.9,2174.9,2.56748478]
[1770146804661,2.55973103,2177.0,2175.8,2.56748478]
[1770146804865,2.55973103,2177.0,2175.8,2.5725773]
[1770146805069,2.55973103,2177.0,2175.8,0.00509252]
[1770146805070,2.56407701,2177.0,2175.8,0.00509252]
[1770146805264,2.55973103,2176.8,2175.8,0.00509252]
[1770146806565,2.55973103,2176.8,2175.9,12.40078464]
[1770146806766,2.55973103,2176.8,2175.8,0.00509252]
[1770146807067,2.55973103,2176.8,2175.8,12.40587716]
[1770146807263,2.55973103,2176.8,2175.8,0.00509252]
[1770146807662,2.55973103,2176.8,2176.0,12.40078464]
[1770146808167,2.55973103,2176.8,2176.1,12.40078464]
[1770146808368,2.55973103,2176.8,2176.0,12.40078464]
[1770146808661,2.55973103,2176.8,2175.8,0.00509252]
[1770146808862,0.00434598,2177.0,2176.4,12.40078464]
[1770146809062,0.00434598,2177.0,2175.8,3.21509252]
[1770146809063,2.56407701,2177.0,2175.8,0.00509252]
[1770146809261,2.56407701,2177.0,2175.9,12.40078464]
[1770146809869,2.56407701,2177.0,2176.0,12.40078464]
[1770146810269,2.56407701,2177.0,2175.8,0.00509252]
[1770146810564,2.56407701,2177.0,2176.1,2.42805582]
[1770146810565,0.00434598,2177.0,2176.1,2.42805582]
[1770146810766,2.34863075,2178.2,2176.6,2.42805582]
[1770146810967,2.34863075,2178.6,2177.1,2.42805582]
[1770146811265,40.53998413,2179.2,2176.1,4.07796503]
[1770146811266,2.34863075,2179.7,2178.0,2.42805582]
[1770146811565,2.34863075,2179.7,2177.6,2.42805582]
[1770146811765,2.34863075,2179.5,2177.0,2.42805582]
[1770146811975,2.34863075,2178.9,2177.2,2.42805582]
[1770146812268,2.34863075,2178.9,2177.1,2.42805582]
[1770146812466,2.34863075,2178.4,2177.0,0.00594295]
[1770146812769,2.57842075,2178.4,2177.0,0.00594295]
[1770146812964,2.34863075,2178.0,2177.0,0.00594295]
[1770146813666,2.34863075,2178.5,2177.0,2.43399877]
[1770146813871,2.34863075,2178.5,2177.1,12.40078464]
[1770146814069,2.34863075,2178.5,2177.0,2.66392877]
[1770146814270,2.34863075,2178.5,2177.4,12.40078464]
[1770146814573,2.34863075,2178.5,2177.3,2.56397259]
[1770146814763,2.34863075,2178.5,2177.4,12.40078464]
[1770146814967,2.34863075,2178.5,2177.5,12.40078464]
[1770146815165,2.33261482,2179.1,2177.5,2.56397259]
[1770146815869,2.33261482,2178.9,2177.2,7.345]
[1770146816071,2.33261482,2178.9,2177.1,2.56397259]
[1770146816267,2.33261482,2178.7,2177.1,2.56397259]
[1770146816772,2.33261482,2178.7,2177.6,12.40078464]
[1770146816971,2.33261482,2178.7,2177.3,12.40078464]
[1770146817271,2.33261482,2178.7,2177.4,12.40078464]
[1770146817465,3.144,2179.2,2177.0,0.00594295]
[1770146817466,2.33261482,2178.4,2177.0,0.00594295]
[1770146817665,2.33261482,2178.4,2177.1,12.40078464]
[1770146818069,2.33261482,2178.4,2177.2,12.40078464]
[1770146818271,2.33261482,2178.4,2177.1,12.40078464]
[1770146818473,2.33261482,2178.4,2177.2,12.40078464]
[1770146819266,2.33261482,2178.4,2177.4,12.40078464]
[1770146819467,2.56240482,2178.4,2177.0,0.00594295]
[1770146819871,2.56240482,2178.4,2177.2,12.40078464]
[1770146820372,2.33261482,2178.2,2177.3,12.40078464]
[1770146820673,2.33261482,2178.8,2177.0,2.56991554]
[1770146820874,2.56237482,2178.6,2177.0,2.56991554]
[1770146821075,2.33261482,2178.4,2177.0,2.56991554]
[1770146821270,2.33261482,2178.2,2177.0,0.00594295]
[1770146821575,2.33261482,2178.0,2177.0,0.00594295]
[1770146821769,2.33261482,2177.8,2176.2,2.56397259]
[1770146821975,2.56250482,2177.5,2176.2,2.56397259]
[1770146822174,2.56250482,2177.5,2176.4,14.96475723]
[1770146822374,2.33261482,2177.5,2176.5,12.40078464]
[1770146822570,2.33261482,2177.8,2177.0,12.40078464]
[1770146822777,0.00524198,2177.8,2177.0,12.40421744]
[1770146822972,2.3378568,2177.8,2177.0,0.0034328]
[1770146823274,2.3378568,2177.8,2177.2,12.40078464]
[1770146823471,2.3378568,2177.8,2177.3,12.40078464]
[1770146823670,2.3378568,2177.8,2177.0,0.0034328]
[1770146823868,0.22991,2177.2,2176.2,2.57543484]
[1770146824676,0.22993,2177.1,2175.9,2.57543484]
[1770146825071,0.23509198,2177.8,2176.1,2.57543484]
[1770146825275,4.14224198,2177.8,2176.1,2.57543484]
[1770146825473,0.22991,2177.2,2175.5,2.04641039]
[1770146825775,0.22991,2177.2,2175.6,2.57543484]
[1770146826076,0.22991,2177.2,2175.6,2.57886764]
[1770146826970,0.22991,2177.2,2175.6,2.57543484]
[1770146827177,0.22997,2176.7,2175.5,0.00339049]
[1770146827368,6.82529597,2177.1,2175.5,0.00339049]
[1770146827369,2.6763591,2177.1,2175.5,2.57882533]
[1770146827575,4.138,2177.1,2175.5,2.57882533]
[1770146827776,0.2299,2177.3,2175.7,2.57543484]
[1770146827976,0.00524198,2177.8,2176.1,2.57543484]
[1770146828373,0.38089236,2177.8,2175.8,2.57543484]
[1770146828569,0.22993,2177.1,2175.8,2.57543484]
[1770146828974,0.22994,2177.0,2175.8,2.57543484]
[1770146829878,0.22994,2177.0,2175.5,0.00339049]
[1770146829879,6.37665507,2177.0,2175.5,0.00339049]
[1770146830076,0.22999,2176.5,2175.5,0.00339049]
[1770146830876,0.23001,2176.3,2175.5,0.00339049]
[1770146831180,0.23007,2175.7,2174.3,2.57543484]
[1770146831373,2.6763591,2175.6,2174.3,2.57543484]
[1770146831578,2.9064391,2175.6,2174.3,2.57543484]
[1770146831779,6.0354391,2175.6,2174.3,2.57886764]
[1770146831980,6.04041101,2175.6,2174.3,2.58459663]
[1770146832183,2.6763591,2175.5,2174.3,2.58459663]
[1770146832375,6.04041101,2175.6,2174.3,2.58459663]
[1770146832579,0.23009,2175.5,2174.3,2.58459663]
[1770146832780,0.2301,2175.4,2174.3,2.58116383]
[1770146832977,0.2301,2175.4,2174.5,2.57543484]
[1770146833776,0.2301,2175.4,2174.3,0.00572899]
[1770146833979,0.23015,2175.0,2174.3,0.00572899]
[1770146834479,5.8253591,2174.9,2173.8,2.57543484]
[1770146834680,3.149,2174.9,2173.8,2.57886764]
[1770146834879,2.6763591,2175.3,2174.2,2.57886764]
[1770146835078,2.6763591,2175.4,2174.2,2.57543484]
[1770146835578,6.0604491,2175.5,2174.4,2.57543484]
[1770146835776,3.38409,2175.5,2174.5,2.57543484]
[1770146835983,0.00497191,2175.6,2174.8,2.57886764]
[1770146836184,0.00497191,2175.6,2174.8,2.57543484]
[1770146836482,0.00497191,2175.6,2175.0,0.0034328]
[1770146836882,0.00497191,2175.6,2175.1,0.0034328]
[1770146837082,0.00497191,2175.6,2175.0,0.0034328]
[1770146837475,0.00497191,2175.6,2175.1,0.0034328]
[1770146837679,0.00497191,2175.6,2175.0,0.0034328]
[1770146838081,0.00497191,2175.6,2175.1,0.0034328]
[1770146838285,0.00497191,2175.6,2174.8,2.57886764]
[1770146838582,6.0773591,2176.4,2175.4,0.0034328]
[1770146838786,6.0773591,2176.4,2175.1,2.57543484]
[1770146838981,0.23002,2176.2,2174.8,2.57543484]
[1770146839483,0.23004,2176.1,2174.8,2.57543484]
[1770146839785,2.6763591,2176.1,2174.8,2.57543484]
[1770146839979,2.9117314,2176.2,2174.8,2.57543484]
[1770146840177,2.6763591,2176.1,2174.5,2.57543484]
[1770146840380,0.0053523,2176.2,2174.9,2.57543484]
[1770146840577,0.0053523,2176.2,2175.1,2.57903847]
[1770146840787,0.0053523,2176.2,2175.1,2.58247127]
[1770146840981,0.0053523,2176.2,2175.4,2.57903847]
[1770146841388,3.187,2176.6,2175.8,2.58247127]
[1770146841688,3.187,2176.6,2175.8,2.57903847]
[1770146842087,2.71421258,2177.3,2176.3,0.0034328]
[1770146842389,5.908141,2177.3,2176.3,0.00467076]
[1770146842590,0.22994,2177.0,2176.3,0.00467076]
[1770146842791,0.22995,2176.9,2175.7,2.57903847]
[1770146843289,2.71421258,2177.0,2175.8,0.0034328]
[1770146843490,2.94413258,2177.1,2175.8,2.57903847]
[1770146843684,2.71421258,2177.0,2175.8,2.58303324]
[1770146843893,0.22992,2177.1,2176.0,2.57903847]
[1770146844191,2.94413258,2177.1,2176.0,2.57903847]
[1770146844384,2.71421258,2177.0,2176.0,2.57903847]
[1770146844586,2.71421258,2177.2,2176.0,2.58247127]
[1770146844788,0.22992,2177.1,2176.1,0.0034328]
[1770146844988,0.22992,2177.1,2175.8,2.58303324]
[1770146845492,2.94415258,2176.9,2175.8,2.58303324]
[1770146845693,3.213,2176.8,2175.8,2.58303324]
[1770146845886,3.213,2176.8,2175.8,2.58646604]
[1770146846085,3.213,2176.8,2175.9,0.0034328]
[1770146846483,2.71421258,2177.2,2176.3,2.58247127]
[1770146846691,5.93121258,2177.2,2176.3,2.57903847]
[1770146846887,5.93121258,2177.2,2176.3,2.58247127]
[1770146847093,0.00592842,2177.3,2176.7,0.0034328]
[1770146847391,0.00592842,2177.3,2176.5,2.57903847]
[1770146847592,0.00592842,2177.3,2176.9,2.58247127]
[1770146847793,3.219,2177.5,2176.9,2.57903847]
[1770146847992,3.219,2177.5,2177.0,0.0034328]
[1770146848189,3.219,2177.5,2176.7,2.57903847]
[1770146848388,3.219,2177.5,2176.9,0.0034328]
[1770146848594,2.71421258,2177.6,2176.9,0.0034328]
[1770146848794,0.00530835,2177.6,2176.9,0.0034328]
[1770146849093,2.71952093,2177.6,2177.0,0.0034328]
[1770146849289,2.71421258,2177.5,2176.1,2.57903847]
[1770146849493,2.71421258,2177.5,2176.3,2.58247127]
[1770146849890,2.71421258,2177.5,2176.4,2.58247127]
[1770146850089,2.71421258,2177.5,2176.0,4.139]
[1770146850090,2.71421258,2177.1,2176.0,2.57903847]